fUSD/lending_fUSD_20260625
["ID","MTS","AMOUNT","RATE_DAILY","PERIOD"]
[426418875,1782369040000,-186.74588845,0.00023807,2]
[426418874,1782369040000,-188.34978508,0.00023807,2]
[426418873,1782369040000,-785.19337861,0.00023773,2]
[426418882,1782369040000,-317.0,0.00023865,2]
[426418876,1782369040000,-166.89997738,0.00023807,2]
[426418881,1782369040000,-161.18504523,0.00023807,2]
[426418878,1782369040000,-162.44642106,0.00023807,2]
[426418886,1782369040000,-184.57200341,0.00023867,2]
[426418889,1782369040000,-300.99789572,0.00023867,2]
[426418890,1782369040000,-195.10078212,0.00023867,2]
[426418868,1782369040000,-4974.45996912,0.00023499,2]
[426418897,1782369040000,-219.26116133,0.00023867,2]
[426418880,1782369040000,-160.35837558,0.00023807,2]
[426418884,1782369040000,-164.86469296,0.00023867,2]
[426418887,1782369040000,-245.29712847,0.00023867,2]
[426418892,1782369040000,-161.68592306,0.00023867,2]
[426418891,1782369040000,-222.17449396,0.00023867,2]
[426418899,1782369040000,-168.9025751,0.00023867,2]
[426418893,1782369040000,-165.14370423,0.00023867,2]
[426418894,1782369040000,-157.71334593,0.00023867,2]
[426418896,1782369040000,-332.29699442,0.00023867,2]
[426418895,1782369040000,-709.10124685,0.00023867,2]
[426418898,1782369040000,-181.58723481,0.00023867,2]
[426418832,1782369040000,-557.5788265,0.00022129,2]
[426418883,1782369040000,-399.0,0.00023865,2]
[426418870,1782369040000,-1439.358646,0.00023627,2]
[426418888,1782369040000,-252.32974034,0.00023867,2]
[426418867,1782369040000,-153.05995072,0.00023288,2]
[426418871,1782369040000,-10000.0,0.00023767,2]
[426418842,1782369040000,-3562.0,0.00022378,2]
[426418841,1782369040000,-1230.0,0.00022378,2]
[426418851,1782369040000,-785.0,0.000226,2]
[426418850,1782369040000,-4417.33048412,0.00022514,2]
[426418848,1782369040000,-316.72,0.00022466,2]
[426418843,1782369040000,-6084.0,0.00022378,2]
[426418849,1782369040000,-1195.04956632,0.000225,2]
[426418845,1782369040000,-537.92888852,0.00022429,2]
[426418844,1782369040000,-4974.45996912,0.00022403,2]
[426418847,1782369040000,-1346.58,0.00022466,2]
[426418846,1782369040000,-1046.06,0.00022466,2]
[426418853,1782369040000,-4974.45996912,0.00022677,2]
[426418852,1782369040000,-501.20674818,0.00022677,2]
[426418865,1782369040000,-150.0,0.00023288,2]
[426418866,1782369040000,-150.0,0.00023288,2]
[426418857,1782369040000,-4974.45996912,0.00022951,2]
[426418858,1782369040000,-1195.04956632,0.00023,2]
[426418856,1782369040000,-785.0,0.00022933,2]
[426418862,1782369040000,-4974.45996912,0.00023225,2]
[426418859,1782369040000,-152.0,0.00023,2]
[426418855,1782369040000,-1195.04956632,0.000227,2]
[426418864,1782369040000,-785.0,0.00023265,2]
[426418863,1782369040000,-785.19337861,0.00023225,2]
[426418860,1782369040000,-1412.0,0.00023,2]
[426418861,1782369040000,-2677.7,0.00023205,2]
[426418854,1782369040000,-785.19337861,0.00022677,2]
[426418938,1782369041000,-4974.45996912,0.00024595,2]
[426418945,1782369041000,-944.33,0.00024658,2]
[426418948,1782369041000,-181.85,0.00024663,7]
[426418949,1782369041000,-4974.45996912,0.00024869,2]
[426418939,1782369041000,-266.0,0.00024636,2]
[426418931,1782369041000,-277.13,0.0002411,2]
[426418936,1782369041000,-892.06,0.00024575,2]
[426418933,1782369041000,-4974.45996912,0.00024321,2]
[426418929,1782369041000,-4974.45996912,0.00024047,2]
[426418930,1782369041000,-537.92888852,0.00024085,2]
[426418950,1782369041000,-785.19337861,0.00024869,2]
[426418934,1782369041000,-785.19337861,0.00024321,2]
[426418940,1782369041000,-328.0,0.00024636,2]
[426418953,1782369041000,-163.0,0.00025,2]
[426418944,1782369041000,-1000.0,0.00024658,2]
[426418946,1782369041000,-175.87,0.00024658,2]
[426418942,1782369041000,-160.02799572,0.00024657,2]
[426418947,1782369041000,-176.78,0.00024658,2]
[426418943,1782369041000,-164.52,0.00024658,2]
[426418951,1782369041000,-396.0,0.00024886,5]
[426418961,1782369041000,-180.237739,0.0002507,2]
[426418960,1782369041000,-373.49177689,0.0002507,2]
[426418959,1782369041000,-376.69957016,0.0002507,2]
[426418955,1782369041000,-174.843,0.00025,8]
[426418957,1782369041000,-175.42733258,0.00025009,2]
[426418952,1782369041000,-785.0,0.00024927,2]
[426418932,1782369041000,-785.0,0.00024262,2]
[426418941,1782369041000,-444.0,0.0002464,2]
[426418935,1782369041000,-893.07,0.00024575,2]
[426418901,1782369041000,-169.09804334,0.00023867,2]
[426418927,1782369041000,-150.0,0.00024,2]
[426418902,1782369041000,-158.94478582,0.00023867,2]
[426418962,1782369041000,-333.79995476,0.0002507,2]
[426418900,1782369041000,-161.11377439,0.00023867,2]
[426418907,1782369041000,-198.0336629,0.00023867,2]
[426418904,1782369041000,-200.28152374,0.00023867,2]
[426418912,1782369041000,-188.01531868,0.00023867,2]
[426418910,1782369041000,-160.86386717,0.00023867,2]
[426418908,1782369041000,-157.68419209,0.00023867,2]
[426418913,1782369041000,-157.05615192,0.00023867,2]
[426418903,1782369041000,-175.88024011,0.00023867,2]
[426418905,1782369041000,-174.54196635,0.00023867,2]
[426418911,1782369041000,-165.40203333,0.00023867,2]
[426418906,1782369041000,-176.70091541,0.00023867,2]
[426418937,1782369041000,-785.0,0.00024595,2]
[426418909,1782369041000,-171.8357231,0.00023867,2]
[426418915,1782369041000,-209.11123862,0.00023867,2]
[426418924,1782369041000,-785.0,0.0002393,2]
[426418914,1782369041000,-173.86121272,0.00023867,2]
[426418920,1782369041000,-204.08789077,0.00023867,2]
[426418919,1782369041000,-161.74859968,0.00023867,2]
[426418918,1782369041000,-216.68537028,0.00023867,2]
[426418916,1782369041000,-163.77052213,0.00023867,2]
[426418922,1782369041000,-187.18583666,0.00023867,2]
[426418917,1782369041000,-172.73143214,0.00023867,2]
[426418923,1782369041000,-4417.33048412,0.0002391,2]
[426418921,1782369041000,-184.90926797,0.00023867,2]
[426418926,1782369041000,-500.0,0.00024,2]
[426418928,1782369041000,-451.24431856,0.0002401,2]
[426418925,1782369041000,-152.0,0.00024,2]
[426418958,1782369041000,-8533.28575165,0.00025026,2]
[426418954,1782369041000,-2505.337,0.00025,8]
[426419019,1782369041000,-154.46413638,0.00025133,2]
[426418992,1782369041000,-337.8051502,0.00025133,2]
[426418994,1782369041000,-222.38727293,0.00025133,2]
[426418997,1782369041000,-217.14752512,0.00025133,2]
[426418998,1782369041000,-351.76048023,0.00025133,2]
[426418999,1782369041000,-400.56304748,0.00025133,2]
[426418996,1782369041000,-317.88957163,0.00025133,2]
[426418995,1782369041000,-338.19608667,0.00025133,2]
[426419004,1782369041000,-179.76355722,0.00025133,2]
[426419002,1782369041000,-152.82620691,0.00025133,2]
[426419009,1782369041000,-321.72773434,0.00025133,2]
[426419011,1782369041000,-376.03063737,0.00025133,2]
[426419007,1782369041000,-396.0673258,0.00025133,2]
[426419012,1782369041000,-314.11230384,0.00025133,2]
[426418989,1782369041000,-438.52232265,0.00025133,2]
[426419010,1782369041000,-330.80406666,0.00025133,2]
[426419014,1782369041000,-347.72242544,0.00025133,2]
[426419008,1782369041000,-343.67144621,0.00025133,2]
[426419003,1782369041000,-235.11639364,0.00025133,2]
[426419013,1782369041000,-418.22247724,0.00025133,2]
[426419016,1782369041000,-345.46286429,0.00025133,2]
[426419018,1782369041000,-242.28663408,0.00025133,2]
[426419015,1782369041000,-327.54104426,0.00025133,2]
[426419020,1782369041000,-323.49719937,0.00025133,2]
[426419022,1782369041000,-247.3913292,0.00025133,2]
[426419021,1782369041000,-408.17578154,0.00025133,2]
[426419017,1782369041000,-433.37074055,0.00025133,2]
[426418956,1782369041000,-173.0,0.00025,7]
[426419023,1782369041000,-369.81853593,0.00025133,2]
[426419006,1782369041000,-315.36838418,0.00025133,2]
[426418993,1782369041000,-322.22754878,0.00025133,2]
[426419005,1782369041000,-353.40183083,0.00025133,2]
[426419000,1782369041000,-198.11764546,0.00025133,2]
[426418991,1782369041000,-235.19536655,0.00025133,2]
[426418964,1782369041000,-320.71675115,0.0002507,2]
[426418975,1782369041000,-601.99579144,0.00025133,2]
[426418963,1782369041000,-324.89284212,0.0002507,2]
[426418965,1782369041000,-322.37009045,0.0002507,2]
[426418966,1782369041000,-329.72938593,0.00025133,2]
[426418969,1782369041000,-150.03812539,0.00025133,2]
[426418968,1782369041000,-231.90928126,0.00025133,2]
[426418967,1782369041000,-195.58683252,0.00025133,2]
[426418972,1782369041000,-232.1857895,0.00025133,2]
[426418970,1782369041000,-369.14400681,0.00025133,2]
[426418971,1782369041000,-490.59425695,0.00025133,2]
[426418973,1782369041000,-626.15131634,0.00025133,2]
[426418976,1782369041000,-390.20156423,0.00025133,2]
[426418974,1782369041000,-504.65948068,0.00025133,2]
[426418987,1782369041000,-190.61683669,0.00025133,2]
[426418978,1782369041000,-323.37184613,0.00025133,2]
[426418990,1782369041000,-363.17446962,0.00025133,2]
[426418986,1782369041000,-664.59398884,0.00025133,2]
[426418983,1782369041000,-187.47591459,0.00025133,2]
[426418977,1782369041000,-444.34898793,0.00025133,2]
[426418981,1782369041000,-315.42669185,0.00025133,2]
[426419001,1782369041000,-349.0839327,0.00025133,2]
[426418979,1782369041000,-207.27640971,0.00025133,2]
[426418982,1782369041000,-330.28740846,0.00025133,2]
[426418980,1782369041000,-172.66899518,0.00025133,2]
[426418988,1782369041000,-176.94225243,0.00025133,2]
[426418985,1782369041000,-153.47523884,0.00025133,2]
[426418984,1782369041000,-531.82593514,0.00025133,2]
[426419076,1782369042000,-560.23766534,0.00025912,2]
[426419063,1782369042000,-156.04930708,0.00025871,2]
[426419064,1782369042000,-201.58988695,0.00025871,2]
[426419053,1782369042000,-150.0,0.00025675,7]
[426419060,1782369042000,-151.0,0.000258,2]
[426419058,1782369042000,-500.0,0.00025799,2]
[426419061,1782369042000,-270.54846626,0.00025871,2]
[426419054,1782369042000,-4974.45996919,0.00025691,2]
[426419055,1782369042000,-483.67122643,0.00025712,2]
[426419056,1782369042000,-537.92888852,0.00025741,2]
[426419066,1782369042000,-218.78558704,0.00025871,2]
[426419062,1782369042000,-276.51126466,0.00025871,2]
[426419067,1782369042000,-151.03583196,0.00025871,2]
[426419071,1782369042000,-373.34481206,0.00025871,2]
[426419077,1782369042000,-360.47547799,0.00025912,2]
[426419068,1782369042000,-259.1973397,0.00025871,2]
[426419072,1782369042000,-163.92024338,0.00025871,2]
[426419070,1782369042000,-264.21748461,0.00025871,2]
[426419069,1782369042000,-204.65355837,0.00025871,2]
[426419073,1782369042000,-594.0,0.00025882,5]
[426419075,1782369042000,-565.04935523,0.00025912,2]
[426419074,1782369042000,-1200.0,0.000259,9]
[426419078,1782369042000,-500.69993215,0.00025912,2]
[426419083,1782369042000,-160.38992658,0.00025926,2]
[426419080,1782369042000,-481.07512673,0.00025912,2]
[426419084,1782369042000,-474.81042905,0.00025926,2]
[426419059,1782369042000,-126205.46952383,0.000258,2]
[426419065,1782369042000,-229.17957011,0.00025871,2]
[426419057,1782369042000,-500.0,0.00025774,2]
[426419089,1782369042000,-166.44089872,0.00025973,2]
[426419050,1782369042000,-17387.0241558,0.00025455,2]
[426419027,1782369042000,-3250.0,0.00025253,3]
[426419026,1782369042000,-4974.45996912,0.00025143,2]
[426419024,1782369042000,-374.37167332,0.00025133,2]
[426419025,1782369042000,-11850.16602588,0.00025136,2]
[426419038,1782369042000,-1230.0,0.00025378,2]
[426419037,1782369042000,-1361.0,0.00025378,2]
[426419039,1782369042000,-3562.0,0.00025378,2]
[426419033,1782369042000,-180.66658762,0.00025355,4]
[426419028,1782369042000,-785.0,0.00025259,2]
[426419034,1782369042000,-347.73270432,0.00025355,2]
[426419030,1782369042000,-266.0,0.00025321,2]
[426419031,1782369042000,-444.0,0.00025325,2]
[426419029,1782369042000,-4417.33048412,0.00025305,2]
[426419036,1782369042000,-1277.0,0.00025378,2]
[426419032,1782369042000,-284.63225777,0.00025355,2]
[426419040,1782369042000,-6084.0,0.00025378,2]
[426419035,1782369042000,-383.0,0.00025378,2]
[426419043,1782369042000,-4974.45996912,0.00025417,2]
[426419042,1782369042000,-785.19337861,0.00025417,2]
[426419041,1782369042000,-176.30165572,0.00025397,2]
[426419045,1782369042000,-500.0,0.00025454,2]
[426419052,1782369042000,-610.38,0.000255,7]
[426419049,1782369042000,-57045.9012214,0.00025455,2]
[426419046,1782369042000,-500.0,0.00025454,2]
[426419047,1782369042000,-503120.1994816,0.00025455,2]
[426419044,1782369042000,-500.0,0.00025454,2]
[426419048,1782369042000,-4745.2184447,0.00025455,2]
[426419051,1782369042000,-18870.6033068,0.00025455,2]
[426419081,1782369042000,-483.55513568,0.00025912,2]
[426419155,1782369042000,-308.92827276,0.00025976,2]
[426419085,1782369042000,-218.48872038,0.00025926,2]
[426419119,1782369042000,-483.34132317,0.00025976,2]
[426419117,1782369042000,-470.3907331,0.00025976,2]
[426419120,1782369042000,-444.77454586,0.00025976,2]
[426419118,1782369042000,-506.7077253,0.00025976,2]
[426419123,1782369042000,-434.29505023,0.00025976,2]
[426419116,1782369042000,-544.76170444,0.00025976,2]
[426419126,1782369042000,-600.84457122,0.00025976,2]
[426419122,1782369042000,-476.83435745,0.00025976,2]
[426419128,1782369042000,-396.23529093,0.00025976,2]
[426419133,1782369042000,-530.10274624,0.00025976,2]
[426419131,1782369042000,-470.23278728,0.00025976,2]
[426419130,1782369042000,-305.65241381,0.00025976,2]
[426419138,1782369042000,-482.5916015,0.00025976,2]
[426419140,1782369042000,-515.50716931,0.00025976,2]
[426419134,1782369042000,-594.10098869,0.00025976,2]
[426419129,1782369042000,-523.62589905,0.00025976,2]
[426419136,1782369042000,-473.05257627,0.00025976,2]
[426419142,1782369042000,-496.2061,0.00025976,2]
[426419146,1782369042000,-471.16845575,0.00025976,2]
[426419144,1782369042000,-564.04595605,0.00025976,2]
[426419147,1782369042000,-521.58363817,0.00025976,2]
[426419151,1782369042000,-491.31156639,0.00025976,2]
[426419150,1782369042000,-627.33371587,0.00025976,2]
[426419153,1782369042000,-650.05611083,0.00025976,2]
[426419154,1782369042000,-484.57326817,0.00025976,2]
[426419152,1782369042000,-518.19429643,0.00025976,2]
[426419079,1782369042000,-487.33926318,0.00025912,2]
[426419124,1782369042000,-527.64072034,0.00025976,2]
[426419121,1782369042000,-507.29413001,0.00025976,2]
[426419132,1782369042000,-359.52711445,0.00025976,2]
[426419115,1782369042000,-657.78348398,0.00025976,2]
[426419114,1782369042000,-353.88450487,0.00025976,2]
[426419086,1782369042000,-2000.0,0.00025934,7]
[426419087,1782369042000,-785.19337865,0.00025965,2]
[426419088,1782369042000,-246.78690879,0.00025973,2]
[426419092,1782369042000,-494.59407889,0.00025976,2]
[426419093,1782369042000,-391.17366504,0.00025976,2]
[426419100,1782369042000,-756.98922102,0.00025976,2]
[426419091,1782369042000,-213.53793002,0.00025975,2]
[426419096,1782369042000,-553.71601022,0.00025976,2]
[426419097,1782369042000,-735.89138542,0.00025976,2]
[426419099,1782369042000,-417.4342109,0.00025976,2]
[426419090,1782369042000,-232.98820478,0.00025975,2]
[426419098,1782369042000,-464.37157899,0.00025976,2]
[426419094,1782369042000,-463.81856251,0.00025976,2]
[426419082,1782369042000,-438.76972705,0.00025926,2]
[426419101,1782369042000,-902.99368717,0.00025976,2]
[426419095,1782369042000,-300.07625077,0.00025976,2]
[426419108,1782369042000,-473.14003778,0.00025976,2]
[426419111,1782369042000,-306.95047767,0.00025976,2]
[426419106,1782369042000,-345.33799035,0.00025976,2]
[426419112,1782369042000,-996.89098326,0.00025976,2]
[426419107,1782369042000,-495.43111269,0.00025976,2]
[426419113,1782369042000,-381.23367339,0.00025976,2]
[426419103,1782369042000,-666.52348189,0.00025976,2]
[426419109,1782369042000,-374.95182919,0.00025976,2]
[426419105,1782369042000,-414.55281943,0.00025976,2]
[426419102,1782369042000,-585.30234635,0.00025976,2]
[426419104,1782369042000,-485.05776919,0.00025976,2]
[426419110,1782369042000,-354.55062342,0.00025976,2]
[426419196,1782369043000,-458.35914021,0.00026432,2]
[426419195,1782369043000,-161.56003659,0.00026432,2]
[426419190,1782369043000,-374.61083209,0.00026432,2]
[426419187,1782369043000,-161.3104231,0.00026432,2]
[426419194,1782369043000,-169.6896681,0.00026432,2]
[426419192,1782369043000,-403.1797739,0.00026432,2]
[426419191,1782369043000,-312.09861416,0.00026432,2]
[426419189,1782369043000,-553.02252931,0.00026432,2]
[426419198,1782369043000,-331.46531212,0.00026432,2]
[426419193,1782369043000,-413.56771676,0.00026432,2]
[426419197,1782369043000,-169.66575222,0.00026432,2]
[426419188,1782369043000,-541.09693253,0.00026432,2]
[426419200,1782369043000,-151.81388328,0.00026432,2]
[426419202,1782369043000,-178.96183778,0.00026432,2]
[426419210,1782369043000,-360.34266976,0.00026432,2]
[426419211,1782369043000,-160.60777993,0.00026432,2]
[426419207,1782369043000,-518.3946794,0.00026432,2]
[426419206,1782369043000,-403.0731638,0.00026432,2]
[426419201,1782369043000,-437.57117409,0.00026432,2]
[426419204,1782369043000,-434.32580055,0.00026432,2]
[426419209,1782369043000,-160.7132777,0.00026432,2]
[426419203,1782369043000,-171.62382693,0.00026432,2]
[426419208,1782369043000,-210.81274776,0.00026432,2]
[426419205,1782369043000,-302.07166391,0.00026432,2]
[426419212,1782369043000,-160.27131047,0.00026432,2]
[426419217,1782369043000,-528.43496922,0.00026432,2]
[426419179,1782369043000,-171.23,0.00026179,2]
[426419199,1782369043000,-386.44734697,0.00026432,2]
[426419180,1782369043000,-4875.0,0.00026263,10]
[426419214,1782369043000,-160.2777222,0.00026432,2]
[426419183,1782369043000,-176.30165572,0.00026397,2]
[426419160,1782369043000,-561.55750998,0.00025976,2]
[426419158,1782369043000,-494.78265841,0.00025976,2]
[426419159,1782369043000,-554.7278039,0.00025976,2]
[426419156,1782369043000,-485.24579905,0.00025976,2]
[426419157,1782369043000,-612.26367232,0.00025976,2]
[426419168,1782369043000,-220.80777104,0.00026,2]
[426419162,1782369043000,-153.20569006,0.0002598,2]
[426419169,1782369043000,-258.65,0.00026,2]
[426419171,1782369043000,-258.65,0.00026,2]
[426419164,1782369043000,-299.7881489,0.0002598,2]
[426419163,1782369043000,-163.13077899,0.0002598,2]
[426419161,1782369043000,-159.86649533,0.0002598,2]
[426419173,1782369043000,-266.0,0.00026006,2]
[426419166,1782369043000,-1439.358646,0.00025998,2]
[426419172,1782369043000,-550.0,0.00026,2]
[426419165,1782369043000,-613.05901678,0.0002599,2]
[426419170,1782369043000,-258.65,0.00026,2]
[426419167,1782369043000,-1135.83516059,0.00026,2]
[426419185,1782369043000,-610.38,0.000264,7]
[426419175,1782369043000,-5000.0,0.00026076,2]
[426419174,1782369043000,-329.486808,0.00026006,2]
[426419186,1782369043000,-432.6875066,0.00026432,2]
[426419176,1782369043000,-5000.0,0.00026076,2]
[426419182,1782369043000,-389.59472845,0.00026397,2]
[426419177,1782369043000,-5000.0,0.00026076,2]
[426419181,1782369043000,-160.65761998,0.00026397,2]
[426419178,1782369043000,-5000.0,0.00026076,2]
[426419184,1782369043000,-252.69903986,0.00026397,2]
[426419215,1782369043000,-409.30711673,0.00026432,2]
[426419235,1782369043000,-667.59990953,0.00026474,2]
[426419221,1782369043000,-199.94871593,0.00026432,2]
[426419257,1782369043000,-174.04053203,0.00026536,2]
[426419248,1782369043000,-214.27175511,0.00026487,2]
[426419258,1782369043000,-160.28253404,0.00026537,2]
[426419250,1782369043000,-150.0,0.000265,2]
[426419251,1782369043000,-2000.0,0.000265,2]
[426419252,1782369043000,-164.22733682,0.00026536,2]
[426419256,1782369043000,-164.96101625,0.00026536,2]
[426419254,1782369043000,-269.46162093,0.00026536,2]
[426419255,1782369043000,-332.88179744,0.00026536,2]
[426419253,1782369043000,-493.57381757,0.00026536,2]
[426419259,1782369043000,-160.28257499,0.00026537,2]
[426419260,1782369043000,-200.84098654,0.00026537,2]
[426419261,1782369043000,-160.27138776,0.00026537,2]
[426419263,1782369043000,-160.2778499,0.00026537,2]
[426419266,1782369043000,-260.83643938,0.00026537,2]
[426419269,1782369043000,-160.27151097,0.00026537,2]
[426419264,1782369043000,-449.1290013,0.00026537,2]
[426419267,1782369043000,-427.07586005,0.00026537,2]
[426419268,1782369043000,-160.24359581,0.00026537,2]
[426419270,1782369043000,-200.35527559,0.00026537,2]
[426419265,1782369043000,-465.97640955,0.00026537,2]
[426419271,1782369043000,-160.28100749,0.00026537,2]
[426419273,1782369043000,-659.45877185,0.00026539,2]
[426419274,1782369043000,-586.76049756,0.00026539,2]
[426419275,1782369043000,-695.72784377,0.00026539,2]
[426419276,1782369043000,-450.11437616,0.00026539,2]
[426419223,1782369043000,-166.35170877,0.00026432,2]
[426419249,1782369043000,-436.97744075,0.00026487,2]
[426419242,1782369043000,-161.17861414,0.00026487,2]
[426419262,1782369043000,-160.2778022,0.00026537,2]
[426419243,1782369043000,-169.91798892,0.00026487,2]
[426419244,1782369043000,-342.61608399,0.00026487,2]
[426419218,1782369043000,-186.67240603,0.00026432,2]
[426419216,1782369043000,-159.92647042,0.00026432,2]
[426419213,1782369043000,-160.26978715,0.00026432,2]
[426419222,1782369043000,-316.89624098,0.00026432,2]
[426419224,1782369043000,-213.80396922,0.00026432,2]
[426419220,1782369043000,-165.7548506,0.00026432,2]
[426419226,1782369043000,-444.81277671,0.00026432,2]
[426419225,1782369043000,-168.74185422,0.00026432,2]
[426419228,1782369043000,-327.84048675,0.00026432,2]
[426419227,1782369043000,-169.11627441,0.00026432,2]
[426419229,1782369043000,-165.24014991,0.00026432,2]
[426419230,1782369043000,-160.2793327,0.00026432,2]
[426419219,1782369043000,-200.83958872,0.00026432,2]
[426419232,1782369043000,-753.39914031,0.00026474,2]
[426419246,1782369043000,-237.40521453,0.00026487,2]
[426419231,1782369043000,-5345.0,0.00026463,7]
[426419247,1782369043000,-167.34156208,0.00026487,2]
[426419239,1782369043000,-162.79589804,0.00026487,2]
[426419240,1782369043000,-219.38486352,0.00026487,2]
[426419237,1782369043000,-641.43350231,0.00026474,2]
[426419241,1782369043000,-344.71067689,0.00026487,2]
[426419238,1782369043000,-644.7401809,0.00026474,2]
[426419236,1782369043000,-649.78568424,0.00026474,2]
[426419233,1782369043000,-746.98355379,0.00026474,2]
[426419234,1782369043000,-540.71321699,0.00026474,2]
[426419277,1782369043000,-981.1885139,0.00026539,2]
[426419245,1782369043000,-167.1509733,0.00026487,2]
[426419299,1782369044000,-675.6103004,0.00026539,2]
[426419303,1782369044000,-635.77914327,0.00026539,2]
[426419302,1782369044000,-676.39217334,0.00026539,2]
[426419301,1782369044000,-667.16181879,0.00026539,2]
[426419305,1782369044000,-703.52096046,0.00026539,2]
[426419304,1782369044000,-651.44257535,0.00026539,2]
[426419307,1782369044000,-594.35293639,0.00026539,2]
[426419300,1782369044000,-644.45509756,0.00026539,2]
[426419306,1782369044000,-801.12609496,0.00026539,2]
[426419321,1782369044000,-661.60813333,0.00026539,2]
[426419314,1782369044000,-539.29067167,0.00026539,2]
[426419320,1782369044000,-643.45546867,0.00026539,2]
[426419310,1782369044000,-458.47862072,0.00026539,2]
[426419312,1782369044000,-705.34918092,0.00026539,2]
[426419317,1782369044000,-792.13465159,0.00026539,2]
[426419323,1782369044000,-628.22460767,0.00026539,2]
[426419297,1782369044000,-726.34893925,0.00026539,2]
[426419319,1782369044000,-687.34289241,0.00026539,2]
[426419318,1782369044000,-630.73676836,0.00026539,2]
[426419308,1782369044000,-698.1678654,0.00026539,2]
[426419292,1782369044000,-460.42571651,0.00026539,2]
[426419296,1782369044000,-877.0446453,0.00026539,2]
[426419315,1782369044000,-706.80366166,0.00026539,2]
[426419283,1782369044000,-1203.99158289,0.00026539,2]
[426419281,1782369044000,-1009.31896136,0.00026539,2]
[426419280,1782369044000,-208.71710545,0.00026539,2]
[426419282,1782369044000,-780.40312847,0.00026539,2]
[426419279,1782369044000,-696.55736849,0.00026539,2]
[426419278,1782369044000,-738.28801363,0.00026539,2]
[426419284,1782369044000,-888.69797585,0.00026539,2]
[426419298,1782369044000,-705.58609965,0.00026539,2]
[426419289,1782369044000,-660.57481692,0.00026539,2]
[426419288,1782369044000,-630.85338371,0.00026539,2]
[426419286,1782369044000,-621.82922914,0.00026539,2]
[426419294,1782369044000,-571.85051008,0.00026539,2]
[426419290,1782369044000,-562.42774378,0.00026539,2]
[426419287,1782369044000,-518.00698553,0.00026539,2]
[426419293,1782369044000,-1329.18797768,0.00026539,2]
[426419291,1782369044000,-177.27531171,0.00026539,2]
[426419285,1782369044000,-646.74369225,0.00026539,2]
[426419295,1782369044000,-530.8267573,0.00026539,2]
[426419324,1782369044000,-695.44485089,0.00026539,2]
[426419322,1782369044000,-752.06127473,0.00026539,2]
[426419356,1782369044000,-180.51880643,0.00026799,2]
[426419339,1782369044000,-326.26155797,0.00026543,2]
[426419346,1782369044000,-500.0,0.00026799,2]
[426419362,1782369044000,-300.0,0.00026799,10]
[426419363,1782369044000,-692763.64620162,0.000268,2]
[426419353,1782369044000,-500.0,0.00026799,2]
[426419351,1782369044000,-500.0,0.00026799,2]
[426419354,1782369044000,-500.0,0.00026799,2]
[426419355,1782369044000,-500.0,0.00026799,2]
[426419350,1782369044000,-500.0,0.00026799,2]
[426419361,1782369044000,-701.79231786,0.00026799,2]
[426419357,1782369044000,-300.0,0.00026799,10]
[426419359,1782369044000,-300.0,0.00026799,10]
[426419360,1782369044000,-300.0,0.00026799,10]
[426419364,1782369044000,-656.93671727,0.000268,2]
[426419367,1782369044000,-678.9113006,0.000268,2]
[426419366,1782369044000,-2054.98063998,0.000268,2]
[426419365,1782369044000,-3312.48856395,0.000268,2]
[426419326,1782369044000,-655.08208852,0.00026539,2]
[426419358,1782369044000,-300.0,0.00026799,10]
[426419347,1782369044000,-500.0,0.00026799,2]
[426419352,1782369044000,-500.0,0.00026799,2]
[426419342,1782369044000,-320.77985317,0.00026543,2]
[426419337,1782369044000,-319.73299066,0.00026543,2]
[426419336,1782369044000,-166.06900376,0.00026543,2]
[426419328,1782369044000,-866.7414811,0.00026539,2]
[426419327,1782369044000,-690.92572857,0.00026539,2]
[426419325,1782369044000,-836.44495449,0.00026539,2]
[426419344,1782369044000,-4417.33048412,0.000267,2]
[426419335,1782369044000,-748.74334664,0.00026539,2]
[426419330,1782369044000,-463.39240914,0.00026539,2]
[426419333,1782369044000,-742.17398761,0.00026539,2]
[426419332,1782369044000,-816.35156309,0.00026539,2]
[426419329,1782369044000,-726.85990225,0.00026539,2]
[426419334,1782369044000,-739.63707186,0.00026539,2]